[Event "Titled Tuesday Blitz February 14 Late 2023"]
[White "Holt, Conrad"]
[Black "Kleiman, Jake"]
[WhiteFideId "2034387"]
[BlackFideId "2020041"]
[WhiteElo "2540"]
[BlackElo "2399"]
[Result "1/2-1/2"]
[Round "03"]
[TimeControl "180+2"]
[Date "2023.02.14"]
[WhiteClock "0:00:06"]
[BlackClock "0:00:13"]

1. d4 {[%clk 0:03:00]}  Nf6 {[%clk 0:02:59]} 2. c4 {[%clk 0:03:01]}  e6 {[%clk 0:02:58]} 3. Nc3 {[%clk 0:03:01]}  Bb4 {[%clk 0:02:57]} 4. Qc2 {[%clk 0:03:02]}  O-O {[%clk 0:02:57]} 5. e4 {[%clk 0:03:02]}  d5 {[%clk 0:02:58]} 6. e5 {[%clk 0:03:03]}  Ne4 {[%clk 0:02:58]} 7. Bd3 {[%clk 0:03:03]}  c5 {[%clk 0:02:59]} 8. Nf3 {[%clk 0:03:04]}  cxd4 {[%clk 0:02:59]} 9. Nxd4 {[%clk 0:03:05]}  Nd7 {[%clk 0:03:00]} 10. Bf4 {[%clk 0:03:06]}  Ndc5 {[%clk 0:03:00]} 11. O-O {[%clk 0:03:06]}  Bxc3 {[%clk 0:03:00]} 12. bxc3 {[%clk 0:03:07]}  Nxd3 {[%clk 0:03:01]} 13. Qxd3 {[%clk 0:03:06]}  b6 {[%clk 0:03:01]} 14. cxd5 {[%clk 0:03:06]}  exd5 {[%clk 0:02:59]} 15. Rad1 {[%clk 0:03:06]}  Qd7 {[%clk 0:02:53]} 16. f3 {[%clk 0:03:02]}  Nc5 {[%clk 0:02:53]} 17. Qd2 {[%clk 0:02:57]}  Ba6 {[%clk 0:02:52]} 18. Rfe1 {[%clk 0:02:29]}  Nd3 {[%clk 0:02:47]} 19. Qe2 {[%clk 0:02:28]}  Nxf4 {[%clk 0:02:37]} 20. Qxa6 {[%clk 0:02:28]}  Rfc8 {[%clk 0:02:30]} 21. g3 {[%clk 0:02:11]}  Ne6 {[%clk 0:02:26]} 22. Qb5 {[%clk 0:02:10]}  Qxb5 {[%clk 0:02:16]} 23. Nxb5 {[%clk 0:02:11]}  Rc5 {[%clk 0:02:16]} 24. Nd6 {[%clk 0:02:09]}  Rxc3 {[%clk 0:02:13]} 25. f4 {[%clk 0:02:08]}  Rc5 {[%clk 0:02:08]} 26. Re2 {[%clk 0:01:52]}  h5 {[%clk 0:02:04]} 27. f5 {[%clk 0:01:42]}  Nc7 {[%clk 0:01:52]} 28. Nb7 {[%clk 0:01:17]}  Rc3 {[%clk 0:01:44]} 29. e6 {[%clk 0:01:12]}  fxe6 {[%clk 0:01:44]} 30. fxe6 {[%clk 0:01:12]}  Re8 {[%clk 0:01:39]} 31. e7 {[%clk 0:01:12]}  Rc6 {[%clk 0:01:30]} 32. Nd8 {[%clk 0:01:09]}  Rd6 {[%clk 0:01:18]} 33. Rc1 {[%clk 0:01:03]}  Rd7 {[%clk 0:01:11]} 34. Nc6 {[%clk 0:01:00]}  Nb5 {[%clk 0:01:05]} 35. Rf1 {[%clk 0:00:48]}  Rc7 {[%clk 0:00:41]} 36. Ref2 {[%clk 0:00:47]}  Kh7 {[%clk 0:00:38]} 37. Rf8 {[%clk 0:00:45]}  Nd6 {[%clk 0:00:38]} 38. Rxe8 {[%clk 0:00:17]}  Nxe8 {[%clk 0:00:38]} 39. Rc1 {[%clk 0:00:18]}  Kg6 {[%clk 0:00:34]} 40. Kf2 {[%clk 0:00:16]}  Kf6 {[%clk 0:00:33]} 41. Ke3 {[%clk 0:00:15]}  Ke6 {[%clk 0:00:33]} 42. Nd8+ {[%clk 0:00:05]}  Kd7 {[%clk 0:00:28]} 43. Rxc7+ {[%clk 0:00:04]}  Nxc7 {[%clk 0:00:27]} 44. Kd4 {[%clk 0:00:04]}  Kxe7 {[%clk 0:00:25]} 45. Nc6+ {[%clk 0:00:05]}  Kd6 {[%clk 0:00:26]} 46. Nxa7 {[%clk 0:00:05]}  Ne6+ {[%clk 0:00:26]} 47. Kc3 {[%clk 0:00:03]}  Kc5 {[%clk 0:00:25]} 48. Nc8 {[%clk 0:00:03]}  b5 {[%clk 0:00:22]} 49. Ne7 {[%clk 0:00:03]}  d4+ {[%clk 0:00:21]} 50. Kd3 {[%clk 0:00:02]}  g5 {[%clk 0:00:18]} 51. Nf5 {[%clk 0:00:02]}  Kd5 {[%clk 0:00:16]} 52. h4 {[%clk 0:00:02]}  gxh4 {[%clk 0:00:15]} 53. gxh4 {[%clk 0:00:03]}  Nf4+ {[%clk 0:00:15]} 54. Kd2 {[%clk 0:00:04]}  Ke4 {[%clk 0:00:14]} 55. Nd6+ {[%clk 0:00:04]}  Kf3 {[%clk 0:00:13]} 56. Nxb5 {[%clk 0:00:05]}  d3 {[%clk 0:00:13]} 57. a4 {[%clk 0:00:05]}  Ke4 {[%clk 0:00:12]} 58. a5 {[%clk 0:00:05]}  Kd5 {[%clk 0:00:12]} 59. a6 {[%clk 0:00:05]}  Kc6 {[%clk 0:00:13]} 60. a7 {[%clk 0:00:05]}  Kb7 {[%clk 0:00:13]} 61. Ke3 {[%clk 0:00:05]}  Ng6 {[%clk 0:00:12]} 62. Kxd3 {[%clk 0:00:05]}  Nxh4 {[%clk 0:00:13]} 63. Ke4 {[%clk 0:00:06]}  Ng6 {[%clk 0:00:13]} 64. Kf5 {[%clk 0:00:06]}  Ne7+ {[%clk 0:00:13]} 65. Kg5 {[%clk 0:00:06]}  Nc6 {[%clk 0:00:13]} 66. Kxh5 {[%clk 0:00:06]}  Nxa7 {[%clk 0:00:13]} 1/2-1/2


[Site "https://www.chess.com"]

[Event "Titled Tuesday Blitz February 14 Late 2023"]
[White "Mikhalsky, Vladimir"]
[Black "Ozen, Bahadir"]
[WhiteFideId "14144352"]
[BlackFideId "6337058"]
[WhiteElo "2219"]
[BlackElo "2369"]
[Result "0-1"]
[Round "03"]
[TimeControl "180+2"]
[Date "2023.02.14"]
[WhiteClock "0:01:41"]
[BlackClock "0:02:05"]

1. c4 {[%clk 0:03:00]}  c6 {[%clk 0:02:57]} 2. g3 {[%clk 0:02:59]}  d5 {[%clk 0:02:56]} 3. Bg2 {[%clk 0:03:00]}  Nf6 {[%clk 0:02:55]} 4. Nf3 {[%clk 0:02:59]}  Bg4 {[%clk 0:02:54]} 5. O-O {[%clk 0:02:57]}  e6 {[%clk 0:02:51]} 6. Ne5 {[%clk 0:02:57]}  Bh5 {[%clk 0:02:47]} 7. d4 {[%clk 0:02:56]}  Nbd7 {[%clk 0:02:45]} 8. Nc3 {[%clk 0:02:37]}  Nxe5 {[%clk 0:02:35]} 9. dxe5 {[%clk 0:02:37]}  Nd7 {[%clk 0:02:36]} 10. f4 {[%clk 0:02:32]}  Bc5+ {[%clk 0:02:34]} 11. Kh1 {[%clk 0:02:32]}  O-O {[%clk 0:02:32]} 12. h3 {[%clk 0:02:22]}  a5 {[%clk 0:02:24]} 13. g4 {[%clk 0:02:20]}  Bxg4 {[%clk 0:02:23]} 14. Qd3 {[%clk 0:01:49]}  Qh4 {[%clk 0:02:16]} 15. e4 {[%clk 0:01:49]}  dxc4 {[%clk 0:02:05]} 16. Qxd7 {[%clk 0:01:41]}  Bxh3 {[%clk 0:02:05]} 0-1


[Site "https://www.chess.com"]

[Event "Titled Tuesday Blitz February 14 Late 2023"]
[White "Urazayev, Arystanbek"]
[Black "Reprintsev, Alexander"]
[WhiteFideId "13709810"]
[BlackFideId "14100541"]
[WhiteElo "2460"]
[BlackElo "2253"]
[Result "1-0"]
[Round "03"]
[TimeControl "180+2"]
[Date "2023.02.14"]
[WhiteClock "0:00:26"]
[BlackClock "0:00:03"]

1. e4 {[%clk 0:03:00]}  d5 {[%clk 0:02:49]} 2. exd5 {[%clk 0:03:00]}  Qxd5 {[%clk 0:02:49]} 3. Nc3 {[%clk 0:03:00]}  Qa5 {[%clk 0:02:49]} 4. d4 {[%clk 0:03:01]}  Nf6 {[%clk 0:02:48]} 5. Nf3 {[%clk 0:03:02]}  Nc6 {[%clk 0:02:47]} 6. Bd2 {[%clk 0:02:52]}  Bg4 {[%clk 0:02:41]} 7. Nb5 {[%clk 0:02:46]}  Qb6 {[%clk 0:02:41]} 8. h3 {[%clk 0:02:41]}  Bxf3 {[%clk 0:02:38]} 9. Qxf3 {[%clk 0:02:42]}  a6 {[%clk 0:02:38]} 10. d5 {[%clk 0:02:25]}  axb5 {[%clk 0:02:13]} 11. dxc6 {[%clk 0:02:25]}  bxc6 {[%clk 0:02:13]} 12. Bd3 {[%clk 0:02:18]}  e6 {[%clk 0:02:13]} 13. O-O {[%clk 0:02:19]}  Bc5 {[%clk 0:01:52]} 14. Bc3 {[%clk 0:02:08]}  O-O-O {[%clk 0:01:42]} 15. a4 {[%clk 0:02:04]}  b4 {[%clk 0:01:41]} 16. a5 {[%clk 0:02:04]}  Qa7 {[%clk 0:01:41]} 17. Bxf6 {[%clk 0:01:57]}  gxf6 {[%clk 0:01:41]} 18. Qxc6 {[%clk 0:01:58]}  Rd6 {[%clk 0:01:33]} 19. Qf3 {[%clk 0:01:56]}  f5 {[%clk 0:01:33]} 20. c3 {[%clk 0:01:48]}  Rg8 {[%clk 0:01:31]} 21. cxb4 {[%clk 0:01:46]}  Bxb4 {[%clk 0:01:31]} 22. a6 {[%clk 0:01:44]}  Bc5 {[%clk 0:01:14]} 23. Rfd1 {[%clk 0:01:31]}  Kd7 {[%clk 0:01:08]} 24. b4 {[%clk 0:01:27]}  Bb6 {[%clk 0:01:07]} 25. Bxf5 {[%clk 0:01:12]}  Bxf2+ {[%clk 0:00:57]} 26. Qxf2 {[%clk 0:01:05]}  Qxf2+ {[%clk 0:00:56]} 27. Kxf2 {[%clk 0:01:06]}  exf5 {[%clk 0:00:56]} 28. b5 {[%clk 0:00:47]}  Rb8 {[%clk 0:00:54]} 29. Kf3 {[%clk 0:00:43]}  Rxd1 {[%clk 0:00:52]} 30. Rxd1+ {[%clk 0:00:43]}  Kc8 {[%clk 0:00:52]} 31. Rd5 {[%clk 0:00:42]}  Rb6 {[%clk 0:00:47]} 32. Rd8+ {[%clk 0:00:39]}  Kxd8 {[%clk 0:00:44]} 33. a7 {[%clk 0:00:40]}  Rxb5 {[%clk 0:00:43]} 34. a8=Q+ {[%clk 0:00:40]}  Ke7 {[%clk 0:00:43]} 35. Qh8 {[%clk 0:00:37]}  Rb3+ {[%clk 0:00:37]} 36. Kf4 {[%clk 0:00:37]}  Rb4+ {[%clk 0:00:37]} 37. Kxf5 {[%clk 0:00:37]}  Rb5+ {[%clk 0:00:37]} 38. Ke4 {[%clk 0:00:37]}  Rh5 {[%clk 0:00:36]} 39. Kf4 {[%clk 0:00:34]}  c5 {[%clk 0:00:27]} 40. Kg4 {[%clk 0:00:35]}  Rh6 {[%clk 0:00:27]} 41. Qe5+ {[%clk 0:00:35]}  Kf8 {[%clk 0:00:26]} 42. Qh8+ {[%clk 0:00:31]}  Ke7 {[%clk 0:00:24]} 43. h4 {[%clk 0:00:31]}  Rg6+ {[%clk 0:00:22]} 44. Kf3 {[%clk 0:00:29]}  h6 {[%clk 0:00:12]} 45. Qe5+ {[%clk 0:00:28]}  Kf8 {[%clk 0:00:12]} 46. Qxc5+ {[%clk 0:00:29]}  Kg7 {[%clk 0:00:12]} 47. g4 {[%clk 0:00:30]}  Rf6+ {[%clk 0:00:11]} 48. Kg3 {[%clk 0:00:30]}  Re6 {[%clk 0:00:11]} 49. Qd4+ {[%clk 0:00:30]}  Kg6 {[%clk 0:00:11]} 50. Qh8 {[%clk 0:00:28]}  f5 {[%clk 0:00:03]} 51. Qg8+ {[%clk 0:00:26]}  Kf6 {[%clk 0:00:03]} 52. Qf8+ {[%clk 0:00:26]} 1-0


[Site "https://www.chess.com"]

[Event "Titled Tuesday Blitz February 14 Late 2023"]
[White "Maksimovic, Bojan"]
[Black "Santos Flores, Alberto"]
[WhiteFideId "14408120"]
[BlackFideId "3601234"]
[WhiteElo "2486"]
[BlackElo "2164"]
[Result "1/2-1/2"]
[Round "03"]
[TimeControl "180+2"]
[Date "2023.02.14"]
[WhiteClock "0:00:25"]
[BlackClock "0:00:17"]

1. Nf3 {[%clk 0:03:00]}  c5 {[%clk 0:02:58]} 2. g3 {[%clk 0:03:01]}  g6 {[%clk 0:02:58]} 3. Bg2 {[%clk 0:03:01]}  Bg7 {[%clk 0:02:58]} 4. O-O {[%clk 0:03:01]}  Nc6 {[%clk 0:02:58]} 5. d3 {[%clk 0:03:02]}  e6 {[%clk 0:02:58]} 6. e4 {[%clk 0:03:02]}  Nge7 {[%clk 0:02:58]} 7. Nbd2 {[%clk 0:03:02]}  O-O {[%clk 0:02:58]} 8. c3 {[%clk 0:03:03]}  b5 {[%clk 0:02:52]} 9. Qc2 {[%clk 0:03:01]}  d6 {[%clk 0:02:50]} 10. Re1 {[%clk 0:03:01]}  Rb8 {[%clk 0:02:48]} 11. a3 {[%clk 0:03:00]}  a5 {[%clk 0:02:48]} 12. a4 {[%clk 0:02:59]}  b4 {[%clk 0:02:48]} 13. Nc4 {[%clk 0:02:58]}  bxc3 {[%clk 0:02:43]} 14. bxc3 {[%clk 0:02:59]}  Ba6 {[%clk 0:02:42]} 15. Bf4 {[%clk 0:02:54]}  Bxc4 {[%clk 0:02:36]} 16. dxc4 {[%clk 0:02:53]}  Qc7 {[%clk 0:02:35]} 17. Red1 {[%clk 0:02:40]}  Ne5 {[%clk 0:02:30]} 18. Nxe5 {[%clk 0:02:28]}  Bxe5 {[%clk 0:02:30]} 19. Bxe5 {[%clk 0:02:15]}  dxe5 {[%clk 0:02:31]} 20. Rab1 {[%clk 0:02:15]}  Rxb1 {[%clk 0:02:28]} 21. Rxb1 {[%clk 0:02:14]}  Rb8 {[%clk 0:02:29]} 22. Rb5 {[%clk 0:02:13]}  Rxb5 {[%clk 0:02:16]} 23. cxb5 {[%clk 0:02:12]}  Qd6 {[%clk 0:02:09]} 24. c4 {[%clk 0:01:16]}  Qd4 {[%clk 0:02:08]} 25. Qb3 {[%clk 0:01:16]}  Qd6 {[%clk 0:01:20]} 26. b6 {[%clk 0:01:03]}  Nc6 {[%clk 0:01:14]} 27. Qb5 {[%clk 0:01:04]}  Qd1+ {[%clk 0:00:25]} 28. Bf1 {[%clk 0:01:04]}  Nd4 {[%clk 0:00:26]} 29. b7 {[%clk 0:00:28]}  Ne2+ {[%clk 0:00:25]} 30. Kg2 {[%clk 0:00:28]}  Nf4+ {[%clk 0:00:26]} 31. Kg1 {[%clk 0:00:27]}  Ne2+ {[%clk 0:00:18]} 32. Kg2 {[%clk 0:00:26]}  Nf4+ {[%clk 0:00:19]} 33. gxf4 {[%clk 0:00:25]}  Qg4+ {[%clk 0:00:18]} 34. Kh1 {[%clk 0:00:25]}  Qf3+ {[%clk 0:00:18]} 35. Kg1 {[%clk 0:00:26]}  Qg4+ {[%clk 0:00:18]} 36. Bg2 {[%clk 0:00:24]}  Qd1+ {[%clk 0:00:17]} 37. Bf1 {[%clk 0:00:24]}  Qg4+ {[%clk 0:00:18]} 38. Kh1 {[%clk 0:00:24]}  Qf3+ {[%clk 0:00:17]} 39. Kg1 {[%clk 0:00:25]}  Qg4+ {[%clk 0:00:17]} 1/2-1/2


[Site "https://www.chess.com"]

[Event "Titled Tuesday Blitz February 14 Late 2023"]
[White "Ehlvest, Jaan"]
[Black "Bjelobrk, Igor"]
[WhiteFideId "4500016"]
[BlackFideId "4300726"]
[WhiteElo "2530"]
[BlackElo "2403"]
[Result "0-1"]
[Round "03"]
[TimeControl "180+2"]
[Date "2023.02.14"]
[WhiteClock "0:00:04"]
[BlackClock "0:00:13"]

1. e4 {[%clk 0:02:55]}  e6 {[%clk 0:02:59]} 2. Qe2 {[%clk 0:02:53]}  c5 {[%clk 0:02:58]} 3. g3 {[%clk 0:02:52]}  Nc6 {[%clk 0:02:44]} 4. Bg2 {[%clk 0:02:52]}  d6 {[%clk 0:02:40]} 5. Nf3 {[%clk 0:02:50]}  Nf6 {[%clk 0:02:39]} 6. O-O {[%clk 0:02:50]}  Be7 {[%clk 0:02:37]} 7. c3 {[%clk 0:02:50]}  O-O {[%clk 0:02:34]} 8. d4 {[%clk 0:02:49]}  cxd4 {[%clk 0:02:33]} 9. cxd4 {[%clk 0:02:50]}  d5 {[%clk 0:02:33]} 10. e5 {[%clk 0:02:49]}  Ne4 {[%clk 0:02:31]} 11. Be3 {[%clk 0:02:41]}  f6 {[%clk 0:02:28]} 12. exf6 {[%clk 0:02:39]}  Bxf6 {[%clk 0:02:28]} 13. Nbd2 {[%clk 0:02:31]}  Nd6 {[%clk 0:02:26]} 14. Nb3 {[%clk 0:02:14]}  b6 {[%clk 0:02:23]} 15. Rac1 {[%clk 0:02:01]}  Bd7 {[%clk 0:02:21]} 16. Bf4 {[%clk 0:01:55]}  Nf5 {[%clk 0:02:18]} 17. Qd2 {[%clk 0:01:46]}  Rc8 {[%clk 0:02:13]} 18. Rfe1 {[%clk 0:01:46]}  Re8 {[%clk 0:02:08]} 19. Bf1 {[%clk 0:01:30]}  Na5 {[%clk 0:01:53]} 20. Nxa5 {[%clk 0:01:28]}  bxa5 {[%clk 0:01:52]} 21. Ne5 {[%clk 0:01:27]}  Bxe5 {[%clk 0:01:50]} 22. Bxe5 {[%clk 0:01:26]}  Qb6 {[%clk 0:01:50]} 23. Bd3 {[%clk 0:01:22]}  Bb5 {[%clk 0:01:39]} 24. Bb1 {[%clk 0:01:21]}  h6 {[%clk 0:01:32]} 25. Kg2 {[%clk 0:01:12]}  Rf8 {[%clk 0:01:28]} 26. Rxc8 {[%clk 0:01:09]}  Rxc8 {[%clk 0:01:27]} 27. h4 {[%clk 0:01:06]}  a4 {[%clk 0:01:25]} 28. Rh1 {[%clk 0:01:03]}  Rc4 {[%clk 0:01:09]} 29. b3 {[%clk 0:01:02]}  axb3 {[%clk 0:01:08]} 30. axb3 {[%clk 0:01:02]}  Rc8 {[%clk 0:00:57]} 31. g4 {[%clk 0:01:02]}  Nd6 {[%clk 0:00:57]} 32. f3 {[%clk 0:00:59]}  Nf7 {[%clk 0:00:52]} 33. Bg3 {[%clk 0:00:54]}  Bd7 {[%clk 0:00:48]} 34. Qd3 {[%clk 0:00:50]}  Qb5 {[%clk 0:00:45]} 35. Qh7+ {[%clk 0:00:47]}  Kf8 {[%clk 0:00:46]} 36. g5 {[%clk 0:00:46]}  Qxb3 {[%clk 0:00:35]} 37. gxh6 {[%clk 0:00:37]}  gxh6 {[%clk 0:00:33]} 38. Bg6 {[%clk 0:00:31]}  Be8 {[%clk 0:00:20]} 39. Re1 {[%clk 0:00:22]}  Rc6 {[%clk 0:00:17]} 40. Bxf7 {[%clk 0:00:19]}  Qc2+ {[%clk 0:00:16]} 41. Qxc2 {[%clk 0:00:17]}  Rxc2+ {[%clk 0:00:17]} 42. Kh3 {[%clk 0:00:17]}  Kxf7 {[%clk 0:00:18]} 43. Ra1 {[%clk 0:00:16]}  Bb5 {[%clk 0:00:17]} 44. Rxa7+ {[%clk 0:00:15]}  Kg6 {[%clk 0:00:17]} 45. Be5 {[%clk 0:00:13]}  h5 {[%clk 0:00:13]} 46. Rg7+ {[%clk 0:00:10]}  Kh6 {[%clk 0:00:13]} 47. Re7 {[%clk 0:00:10]}  Rc6 {[%clk 0:00:14]} 48. Kg3 {[%clk 0:00:09]}  Bd3 {[%clk 0:00:14]} 49. Kf4 {[%clk 0:00:09]}  Bf5 {[%clk 0:00:14]} 50. Bf6 {[%clk 0:00:09]}  Rc2 {[%clk 0:00:13]} 51. Bg5+ {[%clk 0:00:08]}  Kg6 {[%clk 0:00:13]} 52. Ke5 {[%clk 0:00:09]}  Re2+ {[%clk 0:00:13]} 53. Kd6 {[%clk 0:00:08]}  Rf2 {[%clk 0:00:14]} 54. f4 {[%clk 0:00:07]}  Rd2 {[%clk 0:00:14]} 55. Ke5 {[%clk 0:00:06]}  Re2+ {[%clk 0:00:14]} 56. Kd6 {[%clk 0:00:07]}  Rd2 {[%clk 0:00:15]} 57. Ke5 {[%clk 0:00:07]}  Re2+ {[%clk 0:00:15]} 58. Kd6 {[%clk 0:00:08]}  Re4 {[%clk 0:00:16]} 59. Kc5 {[%clk 0:00:07]}  Bh3 {[%clk 0:00:16]} 60. Re8 {[%clk 0:00:07]}  Kf5 {[%clk 0:00:16]} 61. Rg8 {[%clk 0:00:06]}  Re2 {[%clk 0:00:15]} 62. Rg7 {[%clk 0:00:06]}  Bg4 {[%clk 0:00:15]} 63. Kd6 {[%clk 0:00:06]}  Ke4 {[%clk 0:00:14]} 64. Rf7 {[%clk 0:00:04]}  Kxd4 {[%clk 0:00:13]} 0-1


[Site "https://www.chess.com"]

[Event "Titled Tuesday Blitz February 14 Late 2023"]
[White "Boyer, Mahel"]
[Black "Kavutskiy, Konstantin"]
[WhiteFideId "45102422"]
[BlackFideId "2026384"]
[WhiteElo "2489"]
[BlackElo "2414"]
[Result "1-0"]
[Round "03"]
[TimeControl "180+2"]
[Date "2023.02.14"]
[WhiteClock "0:00:10"]
[BlackClock "0:00:11"]

1. g3 {[%clk 0:02:58]}  Nf6 {[%clk 0:02:59]} 2. Bg2 {[%clk 0:02:59]}  g6 {[%clk 0:02:59]} 3. e4 {[%clk 0:02:54]}  d6 {[%clk 0:02:55]} 4. Ne2 {[%clk 0:02:46]}  Bg7 {[%clk 0:02:56]} 5. O-O {[%clk 0:02:47]}  O-O {[%clk 0:02:55]} 6. d4 {[%clk 0:02:45]}  e5 {[%clk 0:02:56]} 7. h3 {[%clk 0:02:44]}  Nc6 {[%clk 0:02:55]} 8. d5 {[%clk 0:02:39]}  Ne7 {[%clk 0:02:53]} 9. c4 {[%clk 0:02:37]}  Nd7 {[%clk 0:02:50]} 10. g4 {[%clk 0:02:37]}  f5 {[%clk 0:02:47]} 11. exf5 {[%clk 0:02:33]}  gxf5 {[%clk 0:02:47]} 12. Ng3 {[%clk 0:02:31]}  fxg4 {[%clk 0:02:36]} 13. hxg4 {[%clk 0:02:31]}  Ng6 {[%clk 0:02:26]} 14. Nc3 {[%clk 0:02:25]}  Nf4 {[%clk 0:02:14]} 15. Nce4 {[%clk 0:02:07]}  Nf6 {[%clk 0:02:04]} 16. Bxf4 {[%clk 0:01:57]}  exf4 {[%clk 0:02:01]} 17. Nf5 {[%clk 0:01:25]}  Bxf5 {[%clk 0:01:49]} 18. gxf5 {[%clk 0:01:18]}  Nxe4 {[%clk 0:01:48]} 19. Bxe4 {[%clk 0:01:19]}  Qg5+ {[%clk 0:01:46]} 20. Bg2 {[%clk 0:01:19]}  f3 {[%clk 0:01:36]} 21. Qxf3 {[%clk 0:01:18]}  Rxf5 {[%clk 0:01:36]} 22. Qg3 {[%clk 0:01:16]}  Qh6 {[%clk 0:01:32]} 23. Qh3 {[%clk 0:01:13]}  Qf6 {[%clk 0:01:20]} 24. Rae1 {[%clk 0:01:08]}  Rf8 {[%clk 0:01:18]} 25. Re6 {[%clk 0:01:06]}  Qg5 {[%clk 0:01:16]} 26. Kh1 {[%clk 0:00:55]}  Be5 {[%clk 0:01:03]} 27. Be4 {[%clk 0:00:44]}  Kh8 {[%clk 0:00:38]} 28. Rg1 {[%clk 0:00:28]}  Qf4 {[%clk 0:00:21]} 29. Bxf5 {[%clk 0:00:27]}  Rxf5 {[%clk 0:00:18]} 30. Rg4 {[%clk 0:00:17]}  Qxf2 {[%clk 0:00:08]} 31. Reg6 {[%clk 0:00:06]}  Qe1+ {[%clk 0:00:05]} 32. Rg1 {[%clk 0:00:05]}  Qe4+ {[%clk 0:00:05]} 33. R6g2 {[%clk 0:00:02]}  Rf8 {[%clk 0:00:02]} 34. Qg4 {[%clk 0:00:02]}  Qxg4 {[%clk 0:00:02]} 35. Rxg4 {[%clk 0:00:02]}  Bxb2 {[%clk 0:00:03]} 36. Rb1 {[%clk 0:00:02]}  Be5 {[%clk 0:00:03]} 37. Rxb7 {[%clk 0:00:02]}  h5 {[%clk 0:00:04]} 38. Rg5 {[%clk 0:00:02]}  Kh7 {[%clk 0:00:04]} 39. Rxc7+ {[%clk 0:00:02]}  Kh6 {[%clk 0:00:04]} 40. Rg1 {[%clk 0:00:02]}  Rf3 {[%clk 0:00:04]} 41. Rxa7 {[%clk 0:00:01]}  h4 {[%clk 0:00:04]} 42. Kg2 {[%clk 0:00:01]}  Rg3+ {[%clk 0:00:04]} 43. Kf1 {[%clk 0:00:02]}  Rc3 {[%clk 0:00:05]} 44. Ra6 {[%clk 0:00:02]}  Kh5 {[%clk 0:00:05]} 45. Rg8 {[%clk 0:00:02]}  h3 {[%clk 0:00:05]} 46. Ra7 {[%clk 0:00:03]}  Rf3+ {[%clk 0:00:03]} 47. Ke2 {[%clk 0:00:03]}  Rf6 {[%clk 0:00:02]} 48. Rh7+ {[%clk 0:00:04]}  Rh6 {[%clk 0:00:03]} 49. Rxh6+ {[%clk 0:00:04]}  Kxh6 {[%clk 0:00:04]} 50. Kf3 {[%clk 0:00:04]}  h2 {[%clk 0:00:05]} 51. Kg2 {[%clk 0:00:05]}  Kh7 {[%clk 0:00:05]} 52. Rg5 {[%clk 0:00:05]}  Kh6 {[%clk 0:00:05]} 53. Rxe5 {[%clk 0:00:06]}  dxe5 {[%clk 0:00:06]} 54. Kxh2 {[%clk 0:00:06]}  Kg5 {[%clk 0:00:06]} 55. Kg3 {[%clk 0:00:07]}  Kf6 {[%clk 0:00:07]} 56. Kf3 {[%clk 0:00:08]}  Kf5 {[%clk 0:00:08]} 57. Kg3 {[%clk 0:00:08]}  e4 {[%clk 0:00:09]} 58. Kf2 {[%clk 0:00:08]}  Ke5 {[%clk 0:00:10]} 59. Ke3 {[%clk 0:00:09]}  Kd6 {[%clk 0:00:11]} 60. Kxe4 {[%clk 0:00:10]} 1-0


[Site "https://www.chess.com"]

[Event "Titled Tuesday Blitz February 14 Late 2023"]
[White "Taboas Rodriguez, Daniel"]
[Black "Cuenca Jimenez, Jose Fernando"]
[WhiteFideId "2208466"]
[BlackFideId "2255570"]
[WhiteElo "2371"]
[BlackElo "2535"]
[Result "0-1"]
[Round "03"]
[TimeControl "180+2"]
[Date "2023.02.14"]
[WhiteClock "0:00:05"]
[BlackClock "0:00:23"]

1. d4 {[%clk 0:03:00]}  Nf6 {[%clk 0:02:52]} 2. Nf3 {[%clk 0:02:49]}  g6 {[%clk 0:02:48]} 3. c4 {[%clk 0:02:46]}  Bg7 {[%clk 0:02:43]} 4. Nc3 {[%clk 0:02:36]}  O-O {[%clk 0:02:41]} 5. e4 {[%clk 0:02:36]}  d6 {[%clk 0:02:41]} 6. Be2 {[%clk 0:02:36]}  Bg4 {[%clk 0:02:42]} 7. Be3 {[%clk 0:02:36]}  Nfd7 {[%clk 0:02:42]} 8. Ng1 {[%clk 0:02:33]}  Bxe2 {[%clk 0:02:42]} 9. Ngxe2 {[%clk 0:02:34]}  c5 {[%clk 0:02:43]} 10. d5 {[%clk 0:02:34]}  Qa5 {[%clk 0:02:41]} 11. O-O {[%clk 0:02:32]}  Ne5 {[%clk 0:02:41]} 12. Qb3 {[%clk 0:02:29]}  Qb4 {[%clk 0:02:41]} 13. Qxb4 {[%clk 0:02:23]}  cxb4 {[%clk 0:02:42]} 14. Nb5 {[%clk 0:02:23]}  Nxc4 {[%clk 0:02:42]} 15. Nc7 {[%clk 0:02:21]}  Nxe3 {[%clk 0:02:41]} 16. fxe3 {[%clk 0:02:21]}  Nd7 {[%clk 0:02:34]} 17. Nxa8 {[%clk 0:02:20]}  Rxa8 {[%clk 0:02:35]} 18. Nd4 {[%clk 0:02:17]}  Nc5 {[%clk 0:02:29]} 19. Rac1 {[%clk 0:02:15]}  Bf6 {[%clk 0:02:06]} 20. Rc4 {[%clk 0:02:14]}  a5 {[%clk 0:02:05]} 21. Nb3 {[%clk 0:02:13]}  b6 {[%clk 0:01:50]} 22. Nxc5 {[%clk 0:02:10]}  bxc5 {[%clk 0:01:48]} 23. Rb1 {[%clk 0:02:03]}  Kg7 {[%clk 0:01:43]} 24. Kf2 {[%clk 0:02:04]}  Be5 {[%clk 0:01:40]} 25. h3 {[%clk 0:02:03]}  Rf8 {[%clk 0:01:34]} 26. Ke2 {[%clk 0:02:02]}  f5 {[%clk 0:01:29]} 27. b3 {[%clk 0:01:59]}  fxe4 {[%clk 0:01:21]} 28. Rxe4 {[%clk 0:02:00]}  Ra8 {[%clk 0:01:19]} 29. Rc4 {[%clk 0:01:29]}  a4 {[%clk 0:01:17]} 30. Rc2 {[%clk 0:01:30]}  axb3 {[%clk 0:01:13]} 31. axb3 {[%clk 0:01:30]}  Bc3 {[%clk 0:01:12]} 32. Kd3 {[%clk 0:01:28]}  Rf8 {[%clk 0:00:58]} 33. Ke4 {[%clk 0:01:23]}  Rf5 {[%clk 0:00:58]} 34. Rd1 {[%clk 0:01:22]}  Re5+ {[%clk 0:00:56]} 35. Kf3 {[%clk 0:01:22]}  Rf5+ {[%clk 0:00:57]} 36. Ke4 {[%clk 0:01:18]}  Kf6 {[%clk 0:00:56]} 37. Ra2 {[%clk 0:01:17]}  Re5+ {[%clk 0:00:54]} 38. Kf3 {[%clk 0:01:15]}  Kf7 {[%clk 0:00:54]} 39. e4 {[%clk 0:01:13]}  Rh5 {[%clk 0:00:49]} 40. Rf1 {[%clk 0:01:08]}  Bf6 {[%clk 0:00:47]} 41. Re2 {[%clk 0:01:03]}  Rh4 {[%clk 0:00:45]} 42. Kg3 {[%clk 0:00:59]}  Rh5 {[%clk 0:00:45]} 43. Kh2 {[%clk 0:00:55]}  Kg7 {[%clk 0:00:44]} 44. g4 {[%clk 0:00:52]}  Re5 {[%clk 0:00:43]} 45. Kg3 {[%clk 0:00:52]}  h5 {[%clk 0:00:42]} 46. Rfe1 {[%clk 0:00:47]}  h4+ {[%clk 0:00:41]} 47. Kf4 {[%clk 0:00:45]}  Bg5+ {[%clk 0:00:40]} 48. Kf3 {[%clk 0:00:44]}  e6 {[%clk 0:00:40]} 49. Ra1 {[%clk 0:00:39]}  exd5 {[%clk 0:00:38]} 50. Ra7+ {[%clk 0:00:36]}  Kf6 {[%clk 0:00:38]} 51. Ra6 {[%clk 0:00:24]}  dxe4+ {[%clk 0:00:31]} 52. Rxe4 {[%clk 0:00:24]}  Ke6 {[%clk 0:00:31]} 53. Rxe5+ {[%clk 0:00:12]}  Kxe5 {[%clk 0:00:32]} 54. Ra8 {[%clk 0:00:12]}  Bc1 {[%clk 0:00:30]} 55. Rg8 {[%clk 0:00:11]}  g5 {[%clk 0:00:31]} 56. Ke2 {[%clk 0:00:07]}  Kd4 {[%clk 0:00:29]} 57. Rd8 {[%clk 0:00:05]}  d5 {[%clk 0:00:28]} 58. Kd1 {[%clk 0:00:05]}  Bf4 {[%clk 0:00:28]} 59. Kc2 {[%clk 0:00:06]}  Ke4 {[%clk 0:00:27]} 60. Kd1 {[%clk 0:00:05]}  c4 {[%clk 0:00:26]} 61. Kc2 {[%clk 0:00:05]}  cxb3+ {[%clk 0:00:23]} 62. Kxb3 {[%clk 0:00:05]}  Bd2 {[%clk 0:00:22]} 63. Kc2 {[%clk 0:00:05]}  Bc3 {[%clk 0:00:22]} 64. Rg8 {[%clk 0:00:05]}  Kf4 {[%clk 0:00:23]} 0-1


[Site "https://www.chess.com"]